[Event "17th Memorial Lezcano Montalvo 2025"]
[Site "Gran Canaria"]
[Date "2025.04.16"]
[Round "5.1"]
[White "Kovchan, Alexander"]
[Black "Larino Nieto, David"]
[Result "0-1"]
[Annotator "RC"]
[ECO "B15"]
[WhiteElo "2433"]
[BlackElo "2448"]
[PlyCount "38"]
[EventDate "2025.04.13"]
[EventType "swiss"]
[EventCountry "ESP"]
[SourceTitle "playchess.com"]
[Source "ChessBase"]
[SourceQuality "1"]
[TimeControl "5400+30"]

1. e4 {[%emt 0:01:09]} c6 {[%emt 0:01:23]} 2. d4 {[%emt 0:00:15]} g6 {[%emt 0:00:12]} 3. Nc3 {[%emt 0:00:36]} d5 {[%emt 0:00:03]} 4. e5 {[%emt 0:00:49]} Nh6 {[%emt 0:00:12]} 5. Bf4 {[%emt 0:01:27]} f6 {[%emt 0:11:46]} 6. Qe2 {[%emt 0:02:21]} Nf5 {[%emt 0:10:51]} 7. O-O-O {[%emt 0:13:43]} fxe5 {[%emt 0:02:09]} 8. dxe5 {[%emt 0:05:28]} Qa5 {[%emt 0:06:46]} 9. e6 {[%emt 0:13:26]} d4 {[%emt 0:09:31]} 10. g4 {[%emt 0:13:28]} dxc3 {[%emt 0:01:57]} 11. gxf5 {[%emt 0:00:37]} Qb4 {[%emt 0:01:10]} 12. bxc3 {[%emt 0:17:34]} Qxf4+ {[%emt 0:00:03]} 13. Kb1 {[%emt 0:00:34]} Bg7 {[%emt 0:03:32]} 14. fxg6 {[%emt 0:02:23]} hxg6 {[%emt 0:06:09]} 15. Rd3 {[%emt 0:11:06]} Na6 {[%emt 0:04:16]} 16. Nh3 {[%emt 0:02:41]} Qf6 {[%emt 0:01:34]} 17. Re3 {[%emt 0:02:09]} Nc7 {[%emt 0:01:30]} 18. Bg2 {[%emt 0:01:05]} Bxe6 {[%emt 0:03:24]} 19. Re1 {[%emt 0:00:11]} O-O-O {[%emt 0:01:25]} 0-1

[Event "17th Memorial Lezcano Montalvo 2025"]
[Site "Gran Canaria"]
[Date "2025.04.16"]
[Round "5.2"]
[White "Akhvlediani, Irakli"]
[Black "Petriashvili, Nikoloz"]
[Result "1/2-1/2"]
[Annotator "RC"]
[ECO "D15"]
[WhiteElo "2387"]
[BlackElo "2459"]
[PlyCount "62"]
[EventDate "2025.04.13"]
[EventType "swiss"]
[EventCountry "ESP"]
[SourceTitle "playchess.com"]
[Source "ChessBase"]
[SourceQuality "1"]
[TimeControl "5400+30"]

1. Nf3 {[%emt 0:01:16]} d5 {[%emt 0:00:03]} 2. c4 {[%emt 0:00:02]} c6 {[%emt 0:00:03]} 3. d4 {[%emt 0:00:07]} Nf6 {[%emt 0:00:02]} 4. Nc3 {[%emt 0:00:09]} dxc4 {[%emt 0:00:03]} 5. Ne5 {[%emt 0:00:02]} Nbd7 {[%emt 0:00:05]} 6. Nxc4 {[%emt 0:00:05]} b5 {[%emt 0:00:02]} 7. Ne5 {[%emt 0:00:05]} Nxe5 {[%emt 0:00:01]} 8. dxe5 {[%emt 0:00:09]} Qxd1+ {[%emt 0:00:04]} 9. Nxd1 {[%emt 0:00:06]} Nd7 {[%emt 0:00:02]} 10. e6 {[%emt 0:00:09]} Nb6 {[%emt 0:00:01]} 11. exf7+ {[%emt 0:00:06]} Kxf7 {[%emt 0:00:03]} 12. g3 {[%emt 0:00:04]} g6 {[%emt 0:00:09]} 13. Bg2 {[%emt 0:00:06]} Bd7 {[%emt 0:00:08]} 14. h4 {[%emt 0:00:22]} Bg7 {[%emt 0:00:09]} 15. h5 {[%emt 0:00:17]} Rac8 {[%emt 0:00:12]} 16. Bd2 {[%emt 0:00:11]} Nc4 {[%emt 0:00:06]} 17. Bc3 {[%emt 0:00:04]} Bxc3+ {[%emt 0:00:03]} 18. bxc3 {[%emt 0:00:03]} g5 {[%emt 0:00:16]} 19. a4 {[%emt 0:00:04]} a6 {[%emt 0:01:02]} 20. axb5 {[%emt 0:02:48]} axb5 {[%emt 0:00:02]} 21. Ra7 {[%emt 0:00:37]} Be6 {[%emt 0:00:01]} 22. Ne3 {[%emt 0:00:17]} Ra8 {[%emt 0:00:23]} 23. Rxa8 {[%emt 0:00:41]} Rxa8 {[%emt 0:00:02]} 24. O-O {[%emt 0:05:58]} Nxe3 {[%emt 0:00:01]} 25. fxe3+ {[%emt 0:00:05]} Kg7 {[%emt 0:00:01]} 26. Bxc6 {[%emt 0:00:08]} Rc8 {[%emt 0:00:01]} 27. Bxb5 {[%emt 0:00:06]} Rxc3 {[%emt 0:00:02]} 28. Kf2 {[%emt 0:00:26]} h6 {[%emt 0:00:10]} 29. Bd3 {[%emt 0:00:10]} Rc8 {[%emt 0:00:04]} 30. Bg6 {[%emt 0:00:27]} Rf8+ {[%emt 0:00:07]} 31. Kg1 {[%emt 0:00:06]} Rxf1+ {[%emt 0:00:04]} 1/2-1/2

[Event "17th Memorial Lezcano Montalvo 2025"]
[Site "Gran Canaria"]
[Date "2025.04.16"]
[Round "5.3"]
[White "Alsina Leal, Daniel"]
[Black "Ambartsumova, Karina"]
[Result "1-0"]
[Annotator "RC"]
[ECO "C56"]
[WhiteElo "2496"]
[BlackElo "2405"]
[PlyCount "82"]
[EventDate "2025.04.13"]
[EventType "swiss"]
[EventCountry "ESP"]
[SourceTitle "playchess.com"]
[Source "ChessBase"]
[SourceQuality "1"]
[TimeControl "5400+30"]

1. e4 {[%emt 0:01:14]} e5 {[%emt 0:00:22]} 2. Nf3 {[%emt 0:00:12]} Nc6 {[%emt 0:00:24]} 3. d4 {[%emt 0:00:08]} exd4 {[%emt 0:01:02]} 4. Bc4 {[%emt 0:00:14]} Nf6 {[%emt 0:04:01]} 5. e5 {[%emt 0:00:22]} d5 {[%emt 0:00:46]} 6. Bb5 {[%emt 0:00:18]} Ne4 {[%emt 0:00:19]} 7. Nxd4 {[%emt 0:00:29]} Bd7 {[%emt 0:00:33]} 8. Bxc6 {[%emt 0:00:21]} bxc6 {[%emt 0:00:18]} 9. O-O {[%emt 0:00:30]} Bc5 {[%emt 0:01:13]} 10. f3 {[%emt 0:00:48]} Ng5 {[%emt 0:00:26]} 11. f4 {[%emt 0:00:24]} Ne4 {[%emt 0:00:53]} 12. Be3 {[%emt 0:00:35]} Bb6 {[%emt 0:04:37]} 13. Nd2 {[%emt 0:01:04]} Nxd2 {[%emt 0:08:53]} 14. Qxd2 {[%emt 0:00:37]} c5 {[%emt 0:00:38]} 15. Nf3 {[%emt 0:00:46]} Bf5 {[%emt 0:05:27]} 16. a4 {[%emt 0:07:41]} a5 {[%emt 0:02:09]} 17. c3 {[%emt 0:08:01]} O-O {[%emt 0:11:24]} 18. Rad1 {[%emt 0:12:26]} Qd7 {[%emt 0:13:41]} 19. b3 {[%emt 0:10:56]} Rad8 {[%emt 0:11:50]} 20. h3 {[%emt 0:17:08]} f6 {[%emt 0:04:35]} 21. Qf2 {[%emt 0:08:29]} Qc6 {[%emt 0:02:15]} 22. Kh2 {[%emt 0:02:01]} Kh8 {[%emt 0:04:08]} 23. Rd2 {[%emt 0:03:05]} Be4 {[%emt 0:01:14]} 24. Rfd1 {[%emt 0:01:41]} Kg8 {[%emt 0:03:42]} 25. Qg3 {[%emt 0:04:18]} Kh8 {[%emt 0:01:20]} 26. Qg4 {[%emt 0:02:21]} Rfe8 {[%emt 0:03:37]} 27. Bf2 {[%emt 0:04:06]} Qe6 {[%emt 0:07:30]} 28. Bh4 {[%emt 0:03:00]} Bf5 {[%emt 0:02:53]} 29. Qg3 {[%emt 0:00:26]} Be4 {[%emt 0:00:17]} 30. Re1 {[%emt 0:05:44]} Rb8 {[%emt 0:02:43]} 31. exf6 {[%emt 0:03:04]} gxf6 {[%emt 0:00:06]} 32. Rxd5 {[%emt 0:01:02]} Bxd5 {[%emt 0:00:37]} 33. Rxe6 {[%emt 0:00:17]} Rxe6 {[%emt 0:00:01]} 34. f5 {[%emt 0:00:33]} Rg8 {[%emt 0:02:01]} 35. Qf4 {[%emt 0:03:04]} Bxf3 {[%emt 0:00:58]} 36. Qxf3 {[%emt 0:00:28]} Rd6 {[%emt 0:00:03]} 37. c4 {[%emt 0:00:36]} Rf8 {[%emt 0:01:11]} 38. Qe3 {[%emt 0:00:27]} Kg7 {[%emt 0:00:34]} 39. Bg3 {[%emt 0:00:27]} Rd7 {[%emt 0:00:18]} 40. Bf4 {[%emt 0:00:17]} Kh8 {[%emt 0:00:51]} 41. Qe6 {[%emt 0:00:23]} Rdd8 {[%emt 0:01:10]} 1-0

[Event "17th Memorial Lezcano Montalvo 2025"]
[Site "Gran Canaria"]
[Date "2025.04.16"]
[Round "5.4"]
[White "Narciso Dublan, Marc"]
[Black "Kaczur, Florian"]
[Result "1/2-1/2"]
[Annotator "RC"]
[ECO "D00"]
[WhiteElo "2376"]
[BlackElo "2495"]
[PlyCount "140"]
[EventDate "2025.04.13"]
[EventType "swiss"]
[EventCountry "ESP"]
[SourceTitle "playchess.com"]
[Source "ChessBase"]
[SourceQuality "1"]
[TimeControl "5400+30"]

1. d4 {[%emt 0:00:06]} Nf6 {[%emt 0:00:15]} 2. Bg5 {[%emt 0:00:16]} d5 {[%emt 0:00:25]} 3. e3 {[%emt 0:00:26]} c5 {[%emt 0:01:02]} 4. Bxf6 {[%emt 0:00:23]} exf6 {[%emt 0:00:35]} 5. dxc5 {[%emt 0:01:14]} Bxc5 {[%emt 0:00:24]} 6. Nc3 {[%emt 0:07:33]} Be6 {[%emt 0:06:46]} 7. Bb5+ {[%emt 0:01:48]} Nc6 {[%emt 0:01:29]} 8. Nge2 {[%emt 0:00:27]} O-O {[%emt 0:02:01]} 9. O-O {[%emt 0:00:13]} Qd6 {[%emt 0:09:30]} 10. Nf4 {[%emt 0:13:18]} Rad8 {[%emt 0:01:03]} 11. Nce2 {[%emt 0:01:04]} Bb6 {[%emt 0:06:18]} 12. c3 {[%emt 0:01:18]} Bc7 {[%emt 0:02:15]} 13. Ng3 {[%emt 0:01:24]} Qc5 {[%emt 0:08:13]} 14. Bxc6 {[%emt 0:08:18]} bxc6 {[%emt 0:00:34]} 15. Qa4 {[%emt 0:02:35]} Rb8 {[%emt 0:06:51]} 16. b3 {[%emt 0:06:07]} Rfe8 {[%emt 0:02:31]} 17. Rac1 {[%emt 0:02:55]} Rbd8 {[%emt 0:13:40]} 18. Rfd1 {[%emt 0:03:59]} Bb6 {[%emt 0:01:47]} 19. Nge2 {[%emt 0:16:15]} Bc8 {[%emt 0:03:38]} 20. Qb4 {[%emt 0:06:56]} Qf8 {[%emt 0:03:38]} 21. Qxf8+ {[%emt 0:00:48]} Kxf8 {[%emt 0:00:05]} 22. b4 {[%emt 0:00:44]} Bg4 {[%emt 0:10:03]} 23. Kf1 {[%emt 0:02:16]} a5 {[%emt 0:00:46]} 24. Rd2 {[%emt 0:01:52]} Ra8 {[%emt 0:02:13]} 25. Nd4 {[%emt 0:01:22]} Bd7 {[%emt 0:00:58]} 26. a3 {[%emt 0:03:53]} axb4 {[%emt 0:00:50]} 27. axb4 {[%emt 0:00:05]} Reb8 {[%emt 0:02:50]} 28. Rb2 {[%emt 0:03:39]} Bc7 {[%emt 0:04:43]} 29. Nd3 {[%emt 0:00:56]} Be5 {[%emt 0:00:10]} 30. Nc5 {[%emt 0:01:24]} Be8 {[%emt 0:00:12]} 31. Ke2 {[%emt 0:01:39]} Ra3 {[%emt 0:01:04]} 32. Kd3 {[%emt 0:03:24]} Bd6 {[%emt 0:00:33]} 33. Rcb1 {[%emt 0:03:21]} g6 {[%emt 0:00:36]} 34. Kc2 {[%emt 0:03:17]} h5 {[%emt 0:01:14]} 35. h4 {[%emt 0:00:25]} Ke7 {[%emt 0:00:27]} 36. Rb3 {[%emt 0:00:45]} Raa8 {[%emt 0:00:39]} 37. Nd3 {[%emt 0:00:51]} Kd8 {[%emt 0:00:36]} 38. Kb2 {[%emt 0:00:31]} Rb7 {[%emt 0:02:17]} 39. Ra1 {[%emt 0:00:19]} Rxa1 {[%emt 0:01:26]} 40. Kxa1 {[%emt 0:00:02]} Be5 {[%emt 0:03:56]} 41. Ra3 {[%emt 0:00:29]} Bxd4 {[%emt 0:00:56]} 42. exd4 {[%emt 0:01:18]} g5 {[%emt 0:00:27]} 43. g3 {[%emt 0:00:44]} Re7 {[%emt 0:00:47]} 44. Ra8+ {[%emt 0:00:54]} Kc7 {[%emt 0:00:04]} 45. Kb2 {[%emt 0:00:52]} Bd7 {[%emt 0:00:28]} 46. Rg8 {[%emt 0:00:32]} Bf5 {[%emt 0:00:16]} 47. Nc5 {[%emt 0:00:18]} Re2+ {[%emt 0:00:19]} 48. Ka3 {[%emt 0:00:18]} Rxf2 {[%emt 0:00:16]} 49. hxg5 {[%emt 0:00:24]} fxg5 {[%emt 0:00:02]} 50. Rxg5 {[%emt 0:00:13]} Rf3 {[%emt 0:00:24]} 51. b5 {[%emt 0:00:35]} cxb5 {[%emt 0:00:30]} 52. Rxh5 {[%emt 0:00:27]} Bg6 {[%emt 0:00:33]} 53. Rxd5 {[%emt 0:00:32]} Kc6 {[%emt 0:00:05]} 54. Rg5 {[%emt 0:01:01]} Rxc3+ {[%emt 0:00:10]} 55. Kb2 {[%emt 0:00:10]} Rc2+ {[%emt 0:00:32]} 56. Kb3 {[%emt 0:00:24]} Rc4 {[%emt 0:00:11]} 57. Rg4 {[%emt 0:00:57]} Kd5 {[%emt 0:00:12]} 58. Na6 {[%emt 0:00:37]} Bc2+ {[%emt 0:00:44]} 59. Kb2 {[%emt 0:00:15]} Be4 {[%emt 0:00:20]} 60. Rf4 {[%emt 0:00:49]} Kxd4 {[%emt 0:02:56]} 61. Rxf7 {[%emt 0:00:21]} Rc2+ {[%emt 0:00:05]} 62. Ka3 {[%emt 0:00:38]} Bd5 {[%emt 0:00:27]} 63. Rf4+ {[%emt 0:00:32]} Ke5 {[%emt 0:00:29]} 64. Nb4 {[%emt 0:00:18]} Rc3+ {[%emt 0:00:18]} 65. Kb2 {[%emt 0:00:02]} Rb3+ {[%emt 0:00:14]} 66. Kc2 {[%emt 0:00:36]} Bc4 {[%emt 0:00:33]} 67. Nc6+ {[%emt 0:00:18]} Kd5 {[%emt 0:00:15]} 68. Na5 {[%emt 0:00:24]} Rxg3 {[%emt 0:00:07]} 69. Nxc4 {[%emt 0:00:06]} bxc4 {[%emt 0:00:03]} 70. Rf8 {[%emt 0:00:43]} Rh3 {[%emt 0:00:10]} 1/2-1/2

[Event "17th Memorial Lezcano Montalvo 2025"]
[Site "Gran Canaria"]
[Date "2025.04.16"]
[Round "5.5"]
[White "Korneev, Oleg"]
[Black "Matnadze Bujiashvili, Ann"]
[Result "1/2-1/2"]
[Annotator "RC"]
[ECO "B12"]
[WhiteElo "2466"]
[BlackElo "2329"]
[PlyCount "80"]
[EventDate "2025.04.13"]
[EventType "swiss"]
[EventCountry "ESP"]
[SourceTitle "playchess.com"]
[Source "ChessBase"]
[SourceQuality "1"]
[TimeControl "5400+30"]

1. e4 {[%emt 0:05:50]} c6 {[%emt 0:00:07]} 2. d4 {[%emt 0:00:10]} d5 {[%emt 0:00:08]} 3. e5 {[%emt 0:00:04]} Bf5 {[%emt 0:00:30]} 4. Bd3 {[%emt 0:02:08]} Bxd3 {[%emt 0:00:53]} 5. Qxd3 {[%emt 0:01:55]} e6 {[%emt 0:00:16]} 6. Ne2 {[%emt 0:00:02]} h5 {[%emt 0:03:39]} 7. O-O {[%emt 0:01:55]} Nh6 {[%emt 0:01:21]} 8. Nd2 {[%emt 0:05:14]} Nf5 {[%emt 0:00:41]} 9. Nf3 {[%emt 0:00:11]} Be7 {[%emt 0:01:58]} 10. Ng3 {[%emt 0:03:35]} g6 {[%emt 0:00:33]} 11. a4 {[%emt 0:03:21]} a5 {[%emt 0:02:19]} 12. Qb3 {[%emt 0:12:15]} Na6 {[%emt 0:05:18]} 13. c3 {[%emt 0:08:19]} Rb8 {[%emt 0:00:23]} 14. Be3 {[%emt 0:03:53]} h4 {[%emt 0:05:48]} 15. Nxf5 {[%emt 0:00:11]} gxf5 {[%emt 0:00:01]} 16. h3 {[%emt 0:04:26]} Rg8 {[%emt 0:01:36]} 17. Kh1 {[%emt 0:01:18]} b6 {[%emt 0:06:18]} 18. Ne1 {[%emt 0:00:48]} Nc7 {[%emt 0:04:45]} 19. Nd3 {[%emt 0:00:20]} c5 {[%emt 0:00:40]} 20. Qd1 {[%emt 0:02:43]} c4 {[%emt 0:04:05]} 21. Nf4 {[%emt 0:00:09]} Kd7 {[%emt 0:00:17]} 22. b3 {[%emt 0:00:25]} Bg5 {[%emt 0:12:22]} 23. Nh5 {[%emt 0:03:10]} Kc8 {[%emt 0:07:02]} 24. Qe2 {[%emt 0:06:06]} Kb7 {[%emt 0:04:14]} 25. Bxg5 {[%emt 0:07:35]} Rxg5 {[%emt 0:00:26]} 26. Rfb1 {[%emt 0:01:06]} Rc8 {[%emt 0:03:53]} 27. Nf4 {[%emt 0:05:40]} Na6 {[%emt 0:10:45]} 28. Ra2 {[%emt 0:03:35]} Nb8 {[%emt 0:01:19]} 29. b4 {[%emt 0:05:16]} Nc6 {[%emt 0:02:05]} 30. bxa5 {[%emt 0:00:46]} Nxa5 {[%emt 0:00:02]} 31. Rb5 {[%emt 0:00:12]} Ra8 {[%emt 0:00:53]} 32. Qb2 {[%emt 0:05:12]} Ra6 {[%emt 0:06:21]} 33. Qb4 {[%emt 0:00:10]} Ka7 {[%emt 0:01:53]} 34. Rb2 {[%emt 0:00:49]} Nb3 {[%emt 0:01:25]} 35. a5 {[%emt 0:02:19]} Nxa5 {[%emt 0:03:55]} 36. Kh2 {[%emt 0:07:22]} Nc6 {[%emt 0:10:19]} 37. Qd6 {[%emt 0:00:30]} Qxd6 38. exd6 Nb8 39. g3 {[%emt 0:01:00]} Nd7 {[%emt 0:01:30]} 40. gxh4 Rg8 1/2-1/2

[Event "17th Memorial Lezcano Montalvo 2025"]
[Site "Gran Canaria"]
[Date "2025.04.16"]
[Round "5.6"]
[White "Pap, Misa"]
[Black "Tytynnik, Artem"]
[Result "1/2-1/2"]
[Annotator "RC"]
[ECO "B90"]
[WhiteElo "2444"]
[BlackElo "2209"]
[PlyCount "161"]
[EventDate "2025.04.13"]
[EventType "swiss"]
[EventCountry "ESP"]
[SourceTitle "playchess.com"]
[Source "ChessBase"]
[SourceQuality "1"]
[TimeControl "5400+30"]

1. e4 {[%emt 0:04:14]} c5 {[%emt 0:00:07]} 2. Nf3 {[%emt 0:00:17]} d6 {[%emt 0:00:05]} 3. d4 {[%emt 0:00:59]} cxd4 {[%emt 0:00:04]} 4. Nxd4 {[%emt 0:00:05]} Nf6 {[%emt 0:00:04]} 5. Nc3 {[%emt 0:00:26]} a6 {[%emt 0:00:03]} 6. h3 {[%emt 0:00:41]} e5 {[%emt 0:01:16]} 7. Nb3 {[%emt 0:00:05]} h5 {[%emt 0:01:30]} 8. g3 {[%emt 0:08:10]} Be7 {[%emt 0:01:32]} 9. Be3 {[%emt 0:00:27]} Nbd7 {[%emt 0:01:10]} 10. a4 {[%emt 0:01:29]} b6 {[%emt 0:02:18]} 11. Bg2 {[%emt 0:06:01]} Bb7 {[%emt 0:02:04]} 12. O-O {[%emt 0:07:49]} Rc8 {[%emt 0:01:57]} 13. Nd5 {[%emt 0:01:12]} Nxd5 {[%emt 0:02:10]} 14. exd5 {[%emt 0:00:04]} h4 {[%emt 0:10:23]} 15. g4 {[%emt 0:17:04]} Bg5 {[%emt 0:05:05]} 16. f4 {[%emt 0:02:33]} exf4 {[%emt 0:01:23]} 17. Bxf4 {[%emt 0:00:27]} Bxf4 {[%emt 0:01:22]} 18. Rxf4 {[%emt 0:00:06]} Ne5 {[%emt 0:08:48]} 19. Nd4 {[%emt 0:02:12]} O-O {[%emt 0:05:58]} 20. b3 {[%emt 0:08:35]} Qg5 {[%emt 0:07:53]} 21. Qd2 {[%emt 0:01:57]} Ng6 {[%emt 0:22:56]} 22. Rf2 {[%emt 0:01:07]} Qxd2 {[%emt 0:02:21]} 23. Rxd2 {[%emt 0:00:04]} Rc3 {[%emt 0:04:20]} 24. Nf5 {[%emt 0:07:54]} Rd8 {[%emt 0:00:33]} 25. Re1 {[%emt 0:04:10]} Kf8 {[%emt 0:06:52]} 26. Re4 {[%emt 0:00:06]} Bc8 {[%emt 0:00:41]} 27. Rb4 {[%emt 0:06:56]} b5 {[%emt 0:05:05]} 28. axb5 {[%emt 0:00:11]} axb5 {[%emt 0:00:01]} 29. Rf2 {[%emt 0:05:53]} Rc5 {[%emt 0:01:48]} 30. Nd4 {[%emt 0:06:53]} Bd7 {[%emt 0:00:32]} 31. g5 {[%emt 0:00:49]} Re8 {[%emt 0:01:43]} 32. Kh2 {[%emt 0:03:23]} Re5 {[%emt 0:01:05]} 33. Nc6 {[%emt 0:01:23]} Rxg5 {[%emt 0:02:30]} 34. c4 {[%emt 0:00:10]} bxc4 {[%emt 0:00:36]} 35. Rb8+ {[%emt 0:00:16]} Be8 {[%emt 0:00:01]} 36. b4 {[%emt 0:02:03]} Rcxd5 {[%emt 0:01:09]} 37. Bxd5 {[%emt 0:00:06]} Rxd5 {[%emt 0:00:03]} 38. b5 {[%emt 0:01:00]} c3 {[%emt 0:00:01]} 39. Re2 {[%emt 0:01:04]} Ne5 {[%emt 0:00:07]} 40. Nxe5 {[%emt 0:00:19]} dxe5 {[%emt 0:00:43]} 41. b6 {[%emt 0:00:05]} Rb5 {[%emt 0:01:47]} 42. b7 {[%emt 0:00:21]} f6 {[%emt 0:00:44]} 43. Rc2 {[%emt 0:00:23]} Rb3 {[%emt 0:00:28]} 44. Rxc3 {[%emt 0:02:28]} Rxc3 {[%emt 0:00:24]} 45. Rxe8+ {[%emt 0:00:02]} Kxe8 {[%emt 0:00:01]} 46. b8=Q+ {[%emt 0:00:03]} Kf7 {[%emt 0:01:02]} 47. Qb7+ {[%emt 0:01:03]} Kg8 {[%emt 0:00:27]} 48. Qe4 {[%emt 0:00:12]} Rg3 {[%emt 0:00:41]} 49. Qxh4 {[%emt 0:00:07]} Rg5 {[%emt 0:00:05]} 50. Qe4 {[%emt 0:00:10]} Kf7 {[%emt 0:00:16]} 51. h4 {[%emt 0:00:18]} Rg6 {[%emt 0:00:31]} 52. Qd5+ {[%emt 0:00:15]} Kf8 {[%emt 0:00:07]} 53. Kh3 {[%emt 0:01:05]} Ke7 {[%emt 0:00:28]} 54. Qg8 {[%emt 0:00:49]} f5 {[%emt 0:01:16]} 55. Qc8 {[%emt 0:01:13]} Rf6 {[%emt 0:00:31]} 56. Qc7+ {[%emt 0:00:20]} Kf8 {[%emt 0:00:05]} 57. Qb8+ {[%emt 0:00:13]} Kf7 {[%emt 0:00:04]} 58. Qxe5 {[%emt 0:00:03]} f4 {[%emt 0:00:15]} 59. Qd5+ {[%emt 0:00:16]} Kf8 {[%emt 0:00:07]} 60. Qf3 {[%emt 0:00:33]} Kg8 {[%emt 0:00:34]} 61. h5 {[%emt 0:00:13]} Kh7 {[%emt 0:00:31]} 62. Kg4 {[%emt 0:00:05]} Kh6 {[%emt 0:01:53]} 63. Qa8 {[%emt 0:00:07]} Kh7 {[%emt 0:00:01]} 64. Kf3 {[%emt 0:00:09]} Rh6 {[%emt 0:01:19]} 65. Qe4+ {[%emt 0:00:12]} Kg8 {[%emt 0:00:14]} 66. Qe8+ {[%emt 0:00:33]} Kh7 {[%emt 0:00:02]} 67. Kxf4 {[%emt 0:00:03]} Rf6+ {[%emt 0:00:14]} 68. Kg5 {[%emt 0:00:05]} Rh6 {[%emt 0:00:11]} 69. Qe4+ {[%emt 0:00:22]} Kg8 {[%emt 0:00:04]} 70. Qc4+ {[%emt 0:02:06]} Kh7 {[%emt 0:00:09]} 71. Qf7 {[%emt 0:00:29]} Rf6 {[%emt 0:00:17]} 72. Qe8 {[%emt 0:00:21]} Rh6 {[%emt 0:00:10]} 73. Kf5 {[%emt 0:00:04]} Rf6+ {[%emt 0:00:09]} 74. Ke5 {[%emt 0:00:03]} Rh6 {[%emt 0:00:11]} 75. Kd5 {[%emt 0:00:23]} Rf6 {[%emt 0:00:09]} 76. Qe5 {[%emt 0:00:16]} Rh6 {[%emt 0:00:14]} 77. Qf5+ {[%emt 0:00:05]} Kg8 {[%emt 0:00:10]} 78. Ke5 {[%emt 0:00:25]} Rf6 {[%emt 0:00:14]} 79. Qg4 {[%emt 0:00:22]} Kh7 {[%emt 0:00:10]} 80. Qg5 {[%emt 0:00:32]} Kg8 {[%emt 0:00:24]} 81. Ke4 {[%emt 0:05:26]} 1/2-1/2

[Event "17th Memorial Lezcano Montalvo 2025"]
[Site "Gran Canaria"]
[Date "2025.04.16"]
[Round "5.7"]
[White "Yelisieiev, Yevhenii"]
[Black "Fiorito, Francisco"]
[Result "0-1"]
[Annotator "RC"]
[ECO "E60"]
[WhiteElo "2413"]
[BlackElo "2431"]
[PlyCount "126"]
[EventDate "2025.04.13"]
[EventType "swiss"]
[EventCountry "ESP"]
[SourceTitle "playchess.com"]
[Source "ChessBase"]
[SourceQuality "1"]
[TimeControl "5400+30"]

1. d4 {[%emt 0:00:03]} Nf6 {[%emt 0:00:08]} 2. c4 {[%emt 0:00:12]} g6 {[%emt 0:00:23]} 3. Nf3 {[%emt 0:00:13]} Bg7 {[%emt 0:00:05]} 4. g3 {[%emt 0:00:07]} b6 {[%emt 0:00:07]} 5. Nc3 {[%emt 0:03:10]} Bb7 {[%emt 0:00:24]} 6. d5 {[%emt 0:01:29]} Na6 {[%emt 0:02:45]} 7. Bg2 {[%emt 0:00:28]} O-O {[%emt 0:00:27]} 8. O-O {[%emt 0:00:06]} Nc5 {[%emt 0:00:01]} 9. Re1 {[%emt 0:00:12]} e6 {[%emt 0:05:37]} 10. e4 {[%emt 0:01:50]} d6 {[%emt 0:00:15]} 11. e5 {[%emt 0:10:27]} dxe5 {[%emt 0:03:11]} 12. Nxe5 {[%emt 0:00:38]} exd5 {[%emt 0:06:47]} 13. cxd5 {[%emt 0:02:05]} Re8 {[%emt 0:01:09]} 14. Qf3 {[%emt 0:21:43]} Ncd7 {[%emt 0:15:11]} 15. Bf4 {[%emt 0:04:02]} Nxe5 {[%emt 0:10:11]} 16. Bxe5 {[%emt 0:00:36]} a6 {[%emt 0:02:08]} 17. Rad1 {[%emt 0:13:28]} Nd7 {[%emt 0:01:02]} 18. Bxg7 {[%emt 0:00:54]} Rxe1+ {[%emt 0:00:16]} 19. Rxe1 {[%emt 0:00:03]} Kxg7 {[%emt 0:00:04]} 20. Qf4 {[%emt 0:05:23]} Nf6 {[%emt 0:04:31]} 21. d6 {[%emt 0:12:06]} Bxg2 {[%emt 0:00:32]} 22. dxc7 {[%emt 0:00:14]} Qd7 {[%emt 0:00:06]} 23. Kxg2 {[%emt 0:00:25]} Rc8 {[%emt 0:01:47]} 24. Rd1 {[%emt 0:00:13]} Qc6+ {[%emt 0:00:57]} 25. Kg1 {[%emt 0:02:36]} Qxc7 {[%emt 0:00:05]} 26. Rd6 {[%emt 0:00:32]} Qe7 {[%emt 0:01:31]} 27. Qd4 {[%emt 0:03:49]} b5 {[%emt 0:02:05]} 28. Rxa6 {[%emt 0:04:37]} Rd8 {[%emt 0:00:36]} 29. Qe3 {[%emt 0:01:54]} Qxe3 {[%emt 0:00:17]} 30. fxe3 {[%emt 0:00:04]} b4 {[%emt 0:00:04]} 31. Na4 {[%emt 0:01:11]} Ng4 {[%emt 0:00:45]} 32. h3 {[%emt 0:02:34]} Rd1+ {[%emt 0:00:47]} 33. Kg2 {[%emt 0:00:02]} Nxe3+ {[%emt 0:00:15]} 34. Kf2 {[%emt 0:01:28]} Nc4 {[%emt 0:00:38]} 35. b3 {[%emt 0:00:32]} Rd2+ {[%emt 0:05:09]} 36. Ke1 {[%emt 0:03:41]} Rxa2 {[%emt 0:00:01]} 37. bxc4 {[%emt 0:00:06]} b3 {[%emt 0:00:02]} 38. Rb6 {[%emt 0:00:43]} Rxa4 {[%emt 0:00:06]} 39. Rxb3 {[%emt 0:01:36]} Rxc4 {[%emt 0:00:01]} 40. Kf2 {[%emt 0:00:10]} g5 {[%emt 0:00:21]} 41. Kf3 {[%emt 0:00:20]} h5 {[%emt 0:00:05]} 42. Ra3 {[%emt 0:00:20]} Kg6 {[%emt 0:00:12]} 43. Rb3 {[%emt 0:00:31]} f6 {[%emt 0:00:14]} 44. Ra3 {[%emt 0:01:08]} Rc2 {[%emt 0:00:38]} 45. h4 {[%emt 0:01:50]} g4+ {[%emt 0:01:06]} 46. Ke3 {[%emt 0:00:48]} Rg2 {[%emt 0:00:14]} 47. Kf4 {[%emt 0:00:38]} Rf2+ {[%emt 0:00:06]} 48. Ke4 {[%emt 0:00:01]} f5+ {[%emt 0:01:59]} 49. Ke5 {[%emt 0:00:11]} Re2+ {[%emt 0:00:06]} 50. Kd4 {[%emt 0:00:54]} Re4+ {[%emt 0:06:25]} 51. Kd5 {[%emt 0:00:34]} Re7 {[%emt 0:00:16]} 52. Ra6+ {[%emt 0:00:30]} Kf7 {[%emt 0:00:45]} 53. Rh6 {[%emt 0:01:20]} Re3 {[%emt 0:00:11]} 54. Rxh5 {[%emt 0:02:43]} Kg6 55. Rh8 {[%emt 0:00:00]} Rxg3 {[%emt 0:00:05]} 56. h5+ {[%emt 0:00:00]} Kg7 {[%emt 0:00:38]} 57. Ra8 {[%emt 0:00:00]} Re3 {[%emt 0:00:07]} 58. Ra6 {[%emt 0:00:10]} g3 {[%emt 0:01:30]} 59. Rg6+ {[%emt 0:00:53]} Kh7 {[%emt 0:00:01]} 60. Kd4 {[%emt 0:00:40]} f4 {[%emt 0:00:48]} 61. Rg4 {[%emt 0:00:39]} Re8 {[%emt 0:00:21]} 62. Rxf4 {[%emt 0:01:06]} g2 {[%emt 0:00:13]} 63. Rg4 {[%emt 0:00:28]} Rg8 {[%emt 0:00:05]} 0-1